bitfinex/quotes_SOLUSD_20230110
["timestamp","ask_amount","ask_price","bid_price","bid_amount"]
[1673334321737,20.0,16.036,16.023,23.283]
[1673334322485,128.5031,16.038,16.023,23.283]
[1673334322700,17.0,16.036,16.023,23.283]
[1673334323242,17.0,16.037,16.023,23.283]
[1673334323747,20.0,16.036,16.023,23.283]
[1673334325017,37.0,16.037,16.023,23.283]
[1673334325548,20.0,16.036,16.023,23.283]
[1673334326812,37.0,16.037,16.023,23.283]
[1673334327233,37.0,16.037,16.023,20.0]
[1673334327946,17.0,16.037,16.024,17.0]
[1673334328281,127.50371681,16.038,16.024,17.0]
[1673334328491,37.0,16.037,16.024,17.0]
[1673334329438,20.0,16.037,16.024,17.0]
[1673334329646,20.0,16.037,16.024,26.081]
[1673334330486,20.0,16.037,16.024,86.825448]
[1673334330701,17.0,16.036,16.024,77.744448]
[1673334331098,20.0,16.035,16.024,77.744448]
[1673334331312,37.0,16.034,16.024,77.744448]
[1673334331523,46.8,16.033,16.024,77.744448]
[1673334331727,20.0,16.031,16.024,77.744448]
[1673334331955,20.0,16.03,16.024,77.744448]
[1673334332172,17.0,16.029,16.024,77.744448]
[1673334334811,20.0,16.03,16.024,77.744448]
[1673334339628,20.0,16.028,16.024,77.744448]
[1673334340062,39.00061681,16.028,16.013,116.9945]
[1673334340277,37.0,16.027,16.013,116.9945]
[1673334340796,56.00061681,16.027,16.014,20.0]
[1673334341008,56.00061681,16.027,16.013,116.9945]
[1673334341009,102.81061681,16.027,16.013,116.9945]
[1673334343535,56.00061681,16.027,16.013,116.9945]
[1673334344358,19.00061681,16.027,16.013,116.9945]
[1673334344565,46.81,16.029,16.014,20.0]
[1673334344780,19.00061681,16.029,16.014,23.439]
[1673334345425,20.0,16.028,16.014,23.439]
[1673334346709,39.00061681,16.028,16.014,23.439]
[1673334346896,17.0,16.027,16.014,23.439]
[1673334347424,20.0,16.028,16.014,23.439]
[1673334348290,113.3457,16.029,16.014,23.439]
[1673334348598,132.34631681,16.029,16.014,23.439]
[1673334348808,17.0,16.028,16.014,23.439]
[1673334349440,20.0,16.027,16.013,116.9945]
[1673334349644,17.0,16.026,16.013,116.9945]
[1673334350261,17.0,16.026,16.014,20.0]
[1673334351203,17.0,16.026,16.013,116.9945]
[1673334351541,66.82,16.025,16.013,116.9945]
[1673334351865,36.00061681,16.024,16.013,116.9945]
[1673334354487,39.00061681,16.023,16.009,20.0]
[1673334354671,17.0,16.022,16.01,20.0]
[1673334354881,17.0,16.022,16.011,20.0]
[1673334355092,39.00061681,16.021,16.011,20.0]
[1673334355304,17.0,16.02,16.009,20.0]
[1673334355531,20.0,16.019,16.009,20.0]
[1673334355740,17.0,16.018,16.009,20.0]
[1673334358265,17.0,16.018,16.008,113.2127]
[1673334358487,17.0,16.018,16.009,20.0]
[1673334359322,20.0,16.019,16.009,20.0]
[1673334359538,20.0,16.021,16.009,20.0]
[1673334359729,17.0,16.02,16.009,20.0]
[1673334360063,20.0,16.019,16.009,20.0]
[1673334361737,20.0,16.019,16.007,23.528]
[1673334361952,133.73808643,16.018,16.002,43.2024488]
[1673334362164,133.22,16.01,16.002,43.2024488]
[1673334362376,17.0,16.009,16.002,43.2024488]
[1673334362564,20.0,16.008,16.002,43.2024488]
[1673334362773,63.87,16.007,16.002,43.2024488]
[1673334363004,17.0,16.007,16.002,43.2024488]
[1673334363223,146.23646251,16.006,16.002,43.2024488]
[1673334363531,73.41370043,16.006,16.002,43.2024488]
[1673334363742,46.87,16.009,16.002,43.2024488]
[1673334364144,81.25308362,16.01,16.002,43.2024488]
[1673334364367,26.84,16.01,16.002,43.2024488]
[1673334364567,20.0,16.009,16.002,43.2024488]
[1673334364777,20.0,16.008,16.002,43.2024488]
[1673334365188,20.0,16.015,16.002,43.2024488]
[1673334365404,19.00061681,16.013,16.003,3.889]
[1673334366770,17.0,16.012,16.003,3.889]
[1673334367310,20.0,16.011,16.003,3.889]
[1673334367525,20.0,16.011,16.002,43.2024488]
[1673334367835,20.0,16.009,16.002,43.2024488]
[1673334368238,20.0,16.007,16.002,43.2024488]
[1673334368450,19.19920612,16.006,16.002,43.2024488]
[1673334368666,38.19982293,16.006,16.002,43.2024488]
[1673334368880,39.00061681,16.005,16.002,43.2024488]
[1673334369207,17.0,16.004,16.002,43.2024488]
[1673334369602,22.42285982,16.003,15.986,3.829]
[1673334369831,26.42,16.0,15.986,123.1404]
[1673334370039,17.0,15.999,15.987,20.0]
[1673334370231,17.0,15.999,15.988,3.828]
[1673334370650,19.00061681,16.002,15.988,3.828]
[1673334370881,20.0,16.003,15.988,3.828]
[1673334370882,17.0,16.001,15.988,3.828]
[1673334371200,17.0,16.002,15.988,3.828]
[1673334371607,17.0,16.002,15.988,23.828]
[1673334372141,17.0,16.002,15.989,20.0]
[1673334372332,17.0,16.002,15.99,23.828]
[1673334372753,17.0,16.002,15.991,20.0]
[1673334373399,17.0,16.002,15.99,20.0]
[1673334375077,36.00061681,16.002,15.99,20.0]
[1673334375397,26.66,16.0,15.987,5.229]
[1673334375713,56.00061681,15.999,15.987,20.0]
[1673334376113,56.00061681,15.999,15.986,119.3114]
[1673334376321,56.00061681,15.999,15.987,20.0]
[1673334376547,19.00061681,15.998,15.987,20.0]
[1673334376757,17.0,15.997,15.987,20.0]
[1673334378446,17.0,15.998,15.986,119.3114]
[1673334378654,19.00061681,15.997,15.985,5.23]
[1673334378873,17.0,15.996,15.984,20.0]
[1673334379276,17.0,15.997,15.984,20.0]
[1673334379486,17.0,15.998,15.984,20.0]
[1673334379691,20.0,15.997,15.984,20.0]
[1673334380022,17.0,15.996,15.984,20.0]
[1673334380551,17.0,15.997,15.983,115.3074]
[1673334381292,17.0,15.997,15.984,20.0]
[1673334381606,17.0,15.997,15.983,115.3074]
[1673334382006,66.89,15.999,15.983,115.3074]
[1673334382217,20.0,15.999,15.984,20.0]
[1673334382445,39.00061681,15.999,15.985,7.66]
[1673334382766,20.0,15.999,15.985,7.66]
[1673334383171,46.87,16.007,15.986,40.0]
[1673334383380,20.0,16.006,15.988,20.0]
[1673334383598,39.00061681,16.006,15.989,32.3]
[1673334383924,19.00061681,16.005,15.989,32.3]
[1673334384135,19.00061681,16.005,15.989,12.3]
[1673334384136,26.66,16.0,15.989,12.3]
[1673334384333,26.66,16.0,15.985,13.27]
[1673334384539,45.66061681,16.0,15.985,13.27]
[1673334384749,20.0,15.999,15.985,20.0]
[1673334384974,40.0,15.999,15.985,20.0]
[1673334385170,17.0,15.998,15.985,20.0]
[1673334386848,20.0,15.999,15.987,20.0]
[1673334387060,20.0,15.999,15.986,17.74]
[1673334388235,17.0,15.998,15.985,40.22]
[1673334389367,17.0,15.998,15.985,20.22]
[1673334389579,17.0,15.998,15.985,20.0]
[1673334395060,17.0,15.998,15.984,115.5996]
[1673334395780,17.0,15.998,15.985,20.0]
[1673334396319,17.0,15.998,15.984,115.5996]
[1673334396525,17.0,15.998,15.983,115.3074]
[1673334396740,36.00061681,15.998,15.983,115.3074]
[1673334396953,66.9,15.997,15.983,115.3074]
[1673334397261,17.0,15.996,15.983,115.3074]
[1673334398727,36.00061681,15.996,15.983,115.3074]
[1673334398947,20.0,15.995,15.983,115.3074]
[1673334399161,17.0,15.994,15.983,115.3074]
[1673334399789,36.00061681,15.994,15.983,115.3074]
[1673334400002,36.00061681,15.994,15.981,5.7023369]
[1673334400211,19.00061681,15.994,15.981,5.7023369]
[1673334401449,17.0,15.993,15.981,5.7023369]
[1673334406514,17.0,15.993,15.981,4.7023369]
[1673334407765,17.0,15.994,15.981,4.7023369]
[1673334407975,17.0,15.995,15.981,4.7023369]
[1673334408825,19.00061681,15.996,15.982,17.0]
[1673334409143,20.0,16.009,15.984,20.0]
[1673334409339,20.0,16.009,15.986,20.0]
[1673334409557,46.87,16.008,15.987,74.13]
[1673334409756,20.0,16.007,15.989,20.0]
[1673334409969,39.00061681,16.007,15.99,37.35]
[1673334410304,20.0,16.005,15.991,20.0]
[1673334410827,20.0,16.005,15.99,37.35]
[1673334411020,20.0,16.005,15.989,57.78]
[1673334411233,17.0,16.004,15.989,57.78]
[1673334412828,17.0,16.005,15.989,57.78]
[1673334413644,17.0,16.005,15.989,37.78]
[1673334413860,20.0,16.004,15.988,147.2711]
[1673334414076,20.0,16.002,15.989,20.0]
[1673334414491,102.89061681,16.001,15.988,116.2711]
[1673334414718,20.0,16.0,15.988,116.2711]
[1673334414929,63.89,15.999,15.988,116.2711]
[1673334415554,17.0,15.999,15.988,116.2711]
[1673334416725,46.89,16.0,15.988,116.2711]
[1673334417033,17.0,15.999,15.988,116.2711]
[1673334417247,17.0,16.0,15.988,116.2711]
[1673334417444,63.89,16.0,15.988,116.2711]
[1673334417656,20.0,15.999,15.988,116.2711]
[1673334417882,17.0,15.998,15.988,116.2711]
[1673334419774,17.0,15.999,15.988,116.2711]
[1673334422803,17.0,16.0,15.988,116.2711]
[1673334423014,17.0,16.0,15.989,20.0]
[1673334423743,17.0,16.0,15.988,116.2711]
[1673334424502,20.0,16.001,15.988,116.2711]
[1673334424713,20.0,16.001,15.989,20.0]
[1673334425640,20.0,16.001,15.989,18.5]
[1673334426796,20.0,16.001,15.988,116.2711]
[1673334427310,17.0,16.0,15.988,116.2711]
[1673334427737,46.87,16.009,15.989,24.008]
[1673334427969,20.0,16.008,15.991,20.0]
[1673334428174,39.00061681,16.008,15.993,20.0]
[1673334428389,39.00061681,16.008,15.994,4.006]
[1673334429001,39.00061681,16.008,15.993,4.007]
[1673334429215,17.0,16.007,15.993,4.007]
[1673334429441,20.0,16.006,15.992,117.1957]
[1673334429753,17.0,16.005,15.992,117.1957]
[1673334430155,17.0,16.005,15.992,110.7697]
[1673334432799,17.0,16.005,15.993,3.884]
[1673334433546,17.0,16.005,15.992,110.7697]
[1673334435345,20.0,16.004,15.989,3.885]
[1673334435522,17.0,16.003,15.989,43.885]
[1673334435948,17.0,16.004,15.99,20.0]
[1673334436149,20.0,16.006,15.991,3.937]
[1673334436361,39.70321018,16.01,16.0,26.66]
[1673334436564,46.82,16.024,16.001,3.935]
[1673334436776,46.81,16.028,16.001,60.40220082]
[1673334437004,46.81,16.028,16.002,115.6174]
[1673334437321,46.81,16.028,16.003,27.5]
[1673334437521,46.81,16.028,16.003,182.99233856]
[1673334437731,20.0,16.027,16.004,192.49233856]
[1673334437940,20.0,16.027,16.005,9.345]
[1673334438136,20.0,16.027,16.01,26.48]
[1673334438351,26.87,16.03,16.011,7.585]
[1673334438685,26.87,16.03,16.012,20.0]
[1673334439003,26.87,16.03,16.013,9.447]
[1673334439225,167.5641,16.037,16.013,23.40865597]
[1673334439428,17.0,16.028,16.014,13.96165597]
[1673334440360,167.5641,16.037,16.014,13.96165597]
[1673334440569,20.0,16.036,16.015,18.02]
[1673334440785,20.0,16.034,16.015,18.02]
[1673334440996,46.8,16.033,16.016,13.96165597]
[1673334441429,20.0,16.028,16.014,20.78]
[1673334441642,17.0,16.027,16.013,13.96165597]
[1673334441832,17.0,16.027,16.014,24.35]
[1673334442677,20.0,16.032,16.014,38.31165597]
[1673334442880,20.0,16.03,16.012,20.0]
[1673334443093,20.0,16.029,16.013,24.19]
[1673334443304,20.0,16.029,16.014,17.0]
[1673334443514,20.0,16.029,16.015,44.53]
[1673334443732,20.0,16.03,16.015,44.53]
[1673334443934,20.0,16.031,16.015,58.49165597]
[1673334444350,20.0,16.03,16.015,33.96165597]
[1673334444902,17.0,16.029,16.015,33.96165597]
[1673334445093,17.0,16.029,16.016,23.12]
[1673334445823,17.0,16.029,16.015,33.96165597]
[1673334447502,17.0,16.029,16.015,13.96165597]
[1673334448132,46.81,16.028,16.013,54.59161918]
[1673334448354,133.06,16.02,16.013,23.20491918]
[1673334448562,46.84,16.019,15.994,22.59]
[1673334448888,17.0,16.018,15.997,20.0]
[1673334449094,17.0,16.018,15.994,22.59]
[1673334449095,46.84,16.017,15.994,22.59]
[1673334449412,20.0,16.009,15.994,22.59]
[1673334449733,63.87,16.008,15.985,34.96]
[1673334450039,82.72936581,16.008,15.986,118.0025]
[1673334450251,19.00061681,16.007,15.987,36.21]
[1673334450570,20.0,16.005,15.988,20.0]
[1673334450777,17.0,16.004,15.989,35.8]
[1673334450985,36.00061681,16.004,15.989,35.8]
[1673334451205,19.00061681,16.003,15.989,35.8]
[1673334451418,17.0,16.002,15.988,35.28]
[1673334452338,20.0,16.005,15.989,17.0]
[1673334452558,17.0,16.004,15.989,17.0]
[1673334452770,17.0,16.005,15.99,20.0]
[1673334453095,20.0,16.004,15.99,20.0]
[1673334453409,17.0,16.003,15.99,20.0]
[1673334453720,17.0,16.003,15.989,20.0]
[1673334455626,19.00061681,16.002,15.989,20.0]
[1673334456863,19.00061681,16.002,15.986,118.0025]
[1673334456864,26.66,16.0,15.986,118.0025]
[1673334457073,83.89,15.999,15.987,20.0]
[1673334457300,20.0,15.999,15.987,20.0]
[1673334457704,20.0,16.0,15.987,20.0]
[1673334458137,20.0,16.0,15.988,17.0]
[1673334458678,39.00061681,16.0,15.987,20.0]
[1673334459393,39.00061681,16.0,15.988,17.0]
[1673334460546,39.00061681,16.0,15.987,20.0]
[1673334460771,17.0,15.999,15.987,20.0]
[1673334464217,16.5,15.999,15.987,20.0]
[1673334464967,39.00061681,16.0,15.987,44.41]
[1673334465175,39.00061681,16.0,15.987,20.0]
[1673334466348,17.0,15.999,15.987,20.0]
[1673334467498,17.0,15.999,15.985,24.93]
[1673334467698,17.0,15.999,15.981,3.7023369]
[1673334467699,26.66,15.99,15.981,3.7023369]
[1673334467908,17.0,15.989,15.981,3.7023369]
[1673334468639,39.00061681,15.988,15.981,3.7023369]
[1673334468856,63.93,15.987,15.981,3.7023369]
[1673334469066,20.0,15.986,15.981,3.7023369]
[1673334469278,17.0,15.985,15.981,3.7023369]
[1673334469482,39.00061681,15.986,15.981,3.7023369]
[1673334469692,19.00061681,15.986,15.981,3.7023369]
[1673334470106,17.0,15.985,15.981,3.7023369]
[1673334470323,19.00061681,15.986,15.981,3.7023369]
[1673334470636,17.0,15.985,15.981,3.7023369]
[1673334471287,19.00061681,15.986,15.981,3.7023369]
[1673334471479,20.0,15.983,15.981,3.69e-05]
[1673334471695,1.89035336,15.982,15.981,3.69e-05]
[1673334471906,37.89097017,15.982,15.981,3.69e-05]
[1673334472640,36.00061681,15.982,15.981,3.69e-05]
[1673334472872,37.54301845,15.982,15.981,3.69e-05]
[1673334473174,36.00061681,15.982,15.981,3.69e-05]
[1673334473706,37.6024742,15.982,15.981,3.69e-05]
[1673334473910,1.60185739,15.982,15.981,3.69e-05]
[1673334474120,20.0,15.983,15.981,3.69e-05]
[1673334474530,39.00061681,15.984,15.981,3.69e-05]
[1673334475175,20.0,15.984,15.981,3.69e-05]
[1673334475586,19.00061681,15.985,15.981,3.69e-05]
[1673334476442,66.93,15.988,15.981,3.69e-05]
[1673334476761,20.0,15.988,15.981,3.69e-05]
[1673334476945,19.00061681,15.987,15.981,3.69e-05]
[1673334477572,20.0,15.986,15.981,3.69e-05]
[1673334477902,36.00061681,15.985,15.981,3.69e-05]
[1673334478119,20.0,15.984,15.981,3.69e-05]
[1673334478331,17.0,15.983,15.981,3.69e-05]
[1673334479149,36.00061681,15.983,15.981,3.69e-05]
[1673334479672,20.0,15.982,15.981,3.69e-05]
[1673334479882,37.0,15.982,15.981,3.69e-05]
[1673334480108,20.0,15.982,15.981,3.69e-05]
[1673334481690,20.0,15.984,15.981,3.69e-05]
[1673334482315,17.0,15.983,15.981,3.69e-05]
[1673334483581,20.0,15.998,15.981,3.69e-05]
[1673334483776,20.0,15.999,15.982,4.51]
[1673334483982,20.0,15.999,15.983,20.0]
[1673334484402,20.0,15.997,15.983,20.0]
[1673334484612,46.9,15.996,15.983,20.0]
[1673334484823,20.0,15.995,15.983,20.0]
[1673334485355,17.0,15.994,15.983,20.0]
[1673334485579,20.0,15.993,15.983,20.0]
[1673334485771,17.0,15.992,15.983,20.0]
[1673334486203,136.9909,16.0,15.984,5.45]
[1673334486609,136.9909,16.0,15.984,19.02422767]
[1673334487028,136.9909,16.0,15.984,5.45]
[1673334487253,133.09,16.01,15.984,5.45]
[1673334487467,250.9329,16.02,15.99,26.43]
[1673334487675,20.0,16.016,15.991,25.814]
[1673334487908,20.0,16.015,15.992,20.0]
[1673334488105,20.0,16.013,15.994,20.0]
[1673334488293,20.0,16.013,15.995,12.43]
[1673334488503,20.0,16.013,15.995,26.00422767]
[1673334488830,20.0,16.011,15.996,13.57422767]
[1673334489047,20.0,16.011,15.997,13.38]
[1673334489245,20.0,16.011,15.996,13.57422767]
[1673334489460,20.0,16.011,15.997,13.57422767]
[1673334489778,20.0,16.009,15.993,13.65]
[1673334489988,20.0,16.009,15.994,17.0]
[1673334490202,20.0,16.009,15.995,16.07]
[1673334490720,20.0,16.009,15.993,16.78]
[1673334491131,17.0,16.008,15.993,16.78]
[1673334491341,20.0,16.007,15.993,16.78]
[1673334491678,17.0,16.006,15.993,16.78]
[1673334494400,20.0,16.005,15.992,109.8097]
[1673334494608,17.0,16.004,15.992,109.8097]
[1673334495347,20.0,16.005,15.992,109.8097]
[1673334497989,17.0,16.004,15.992,109.8097]
[1673334498717,26.45,16.02,15.993,33.27]
[1673334498939,111.4213,16.02,16.0,26.48]
[1673334499243,20.0,16.019,16.002,20.0]
[1673334499565,20.0,16.019,16.003,45.89849875]
[1673334499761,20.0,16.025,16.004,20.0]
[1673334499979,46.81,16.028,16.01,26.48]
[1673334500170,20.0,16.028,16.012,20.0]
[1673334500387,20.0,16.028,16.013,34.76]
[1673334500595,73.2009,16.029,16.013,17.76]
[1673334500814,73.2009,16.029,16.011,20.0]
[1673334500815,20.0,16.027,16.012,18.41]
[1673334501439,17.0,16.026,16.012,18.41]
[1673334501651,20.0,16.025,16.012,18.41]
[1673334502078,133.72,16.02,15.993,108.5464]
[1673334502292,46.84,16.019,15.993,20.0]
[1673334502509,20.0,16.018,15.993,20.0]
[1673334502697,46.84,16.017,15.994,20.05]
[1673334502923,46.84,16.017,16.0,26.66]
[1673334503138,46.84,16.019,16.002,20.0]
[1673334503348,17.0,16.018,16.003,22.71]
[1673334503554,20.0,16.017,16.001,22.72]
[1673334503791,17.0,16.016,15.996,23.8]
[1673334503991,36.00061681,16.016,15.997,20.0]
[1673334504189,36.00061681,16.016,15.998,24.14]
[1673334504609,36.00061681,16.016,15.999,20.0]
[1673334504826,36.00061681,16.016,16.0,25.53]
[1673334505032,20.0,16.015,16.0,25.53]
[1673334505242,17.0,16.014,16.001,20.0]
[1673334506196,17.0,16.014,15.999,20.0]
[1673334506406,17.0,16.014,16.0,27.13]
[1673334506617,17.0,16.014,16.001,20.0]
[1673334507781,20.0,16.013,15.997,20.0]
[1673334507997,20.0,16.013,15.964,32.03099803]
[1673334507998,20.0,16.009,15.995,27.37]
[1673334508308,20.0,16.007,15.988,27.14]
[1673334508833,63.87,16.006,15.989,20.0]
[1673334509024,63.87,16.006,15.99,25.16]
[1673334509234,17.0,16.006,15.99,25.16]
[1673334509654,17.0,16.007,15.99,25.16]
[1673334510625,20.0,16.006,15.99,25.16]
[1673334510825,17.0,16.005,15.99,25.16]
[1673334511771,17.0,16.006,15.99,25.16]
[1673334514619,17.0,16.006,15.995,20.0]
[1673334515146,17.0,16.006,15.995,25.632]
[1673334515345,17.0,16.006,15.99,6.242]
[1673334518187,20.0,16.009,15.99,6.242]
[1673334518508,19.00061681,16.008,15.99,6.242]
[1673334518824,20.0,16.007,15.99,6.242]
[1673334519347,17.0,16.006,15.99,6.242]
[1673334520178,20.0,16.009,15.995,20.0]
[1673334520393,39.00061681,16.009,15.995,20.0]
[1673334520589,26.52,16.01,15.996,20.0]
[1673334520796,5.7023,16.038,16.0,133.35]
[1673334520797,26.74,16.03,16.0,133.35]
[1673334521012,26.74,16.03,16.001,3.99]
[1673334521223,26.74,16.03,16.001,40.99]
[1673334521438,46.81,16.029,16.001,40.99]
[1673334521744,20.0,16.028,16.001,23.99]
[1673334521957,26.62,16.02,16.001,23.99]
[1673334522186,20.0,16.019,16.001,3.99]
[1673334522392,17.0,16.018,15.997,3.768]
[1673334522601,20.0,16.017,15.997,23.768]
[1673334522811,17.0,16.016,15.998,20.0]
[1673334523028,17.0,16.016,15.999,5.426]
[1673334523219,17.0,16.016,16.0,20.0]
[1673334523425,17.0,16.016,16.001,7.288]
[1673334526095,66.84,16.019,16.001,7.288]
[1673334526096,46.84,16.019,16.001,7.288]
[1673334526298,46.84,16.019,16.003,20.0]
[1673334526493,46.84,16.019,16.003,38.6]
[1673334526926,46.84,16.019,16.003,20.0]
[1673334527146,46.84,16.019,16.002,112.0446]
[1673334527357,17.0,16.018,16.002,112.0446]
[1673334527565,17.0,16.018,16.002,127.34231421]
[1673334527877,17.0,16.018,16.003,20.0]
[1673334528201,133.11,16.04,16.01,132.84]
[1673334528396,20.0,16.037,16.012,20.0]
[1673334528608,20.0,16.037,16.013,17.45]
[1673334528817,46.79,16.036,16.013,32.74771421]
[1673334529030,20.0,16.035,16.014,15.29771421]
[1673334529349,20.0,16.033,16.015,34.44]
[1673334529559,46.79,16.034,16.015,34.44]
[1673334529883,20.0,16.033,16.016,15.29771421]
[1673334530093,46.8,16.032,16.013,17.52]
[1673334530280,20.0,16.031,16.014,15.29771421]
[1673334530491,20.0,16.029,16.014,15.29771421]
[1673334531645,46.8,16.03,16.014,15.29771421]
[1673334531856,20.0,16.029,16.015,20.0]
[1673334532069,20.0,16.031,16.014,15.29771421]
[1673334532290,46.8,16.03,16.014,15.29771421]
[1673334532510,20.0,16.029,16.014,15.29771421]
[1673334532822,40.0,16.029,16.014,15.29771421]
[1673334533009,20.0,16.029,16.014,15.29771421]
[1673334533222,17.0,16.028,16.014,15.29771421]
[1673334533456,17.0,16.028,16.015,17.0]
[1673334533867,20.0,16.029,16.016,15.29771421]
[1673334534070,20.0,16.031,16.016,15.29771421]
[1673334534394,17.0,16.03,16.017,17.0]
[1673334534605,46.8,16.032,16.018,20.0]
[1673334534823,46.79,16.034,16.019,25.14]
[1673334535004,20.0,16.035,16.019,57.43771421]
[1673334535215,20.0,16.035,16.02,35.29771421]
[1673334535633,20.0,16.035,16.021,15.29771421]
[1673334535849,20.0,16.033,16.012,26.42]
[1673334536066,66.8,16.032,16.013,17.0]
[1673334536284,85.80061681,16.032,16.013,17.0]
[1673334536489,39.00061681,16.031,16.013,17.0]
[1673334536700,83.8,16.03,16.013,17.0]
[1673334536915,20.0,16.029,16.013,37.0]
[1673334537127,17.0,16.028,16.013,17.0]
[1673334538490,20.0,16.027,16.013,17.0]
[1673334538706,17.0,16.026,16.013,17.0]
[1673334540391,66.82,16.025,16.003,20.0]
[1673334540581,37.0,16.024,16.003,112.6857]
[1673334540791,46.82,16.023,16.004,20.0]
[1673334541014,37.0,16.022,16.004,20.0]
[1673334541219,20.0,16.027,16.004,20.0]
[1673334541220,20.0,16.033,16.01,26.55]
[1673334541434,20.0,16.033,16.011,259.7685]
[1673334541645,20.0,16.033,16.012,20.0]
[1673334541860,46.8,16.032,16.013,28.87]
[1673334542077,20.0,16.031,16.013,44.16771421]
[1673334542383,46.8,16.03,16.013,44.16771421]
[1673334542600,17.0,16.029,16.013,28.87]
[1673334542783,17.0,16.029,16.011,230.6885]
[1673334542784,20.0,16.027,16.011,258.1985]
[1673334542998,63.82,16.026,16.011,230.6885]
[1673334543654,20.0,16.025,16.011,230.6885]
[1673334543968,17.0,16.024,16.011,112.6857]
[1673334544676,17.0,16.025,16.011,112.6857]
[1673334545322,20.0,16.024,16.011,112.6857]
[1673334545526,17.0,16.023,16.011,112.6857]
[1673334546378,46.82,16.026,16.011,112.6857]
[1673334546379,20.0,16.025,16.011,112.6857]
[1673334546991,20.0,16.023,16.007,13.3]
[1673334547323,20.0,16.023,16.008,40.0]
[1673334547852,17.0,16.022,16.008,40.0]
[1673334548078,17.0,16.023,16.009,20.0]
[1673334548267,17.0,16.023,16.01,20.0]
[1673334549231,17.0,16.023,16.009,20.0]
[1673334552168,46.82,16.026,16.01,20.0]
[1673334552386,20.0,16.025,16.01,20.0]
[1673334553421,17.0,16.024,16.01,20.0]
[1673334553641,63.82,16.024,16.01,20.0]
[1673334553855,46.82,16.026,16.01,20.0]
[1673334554367,46.82,16.026,16.01,31.05]
[1673334554787,46.82,16.026,16.011,20.0]
[1673334555224,17.0,16.025,16.011,20.0]
[1673334555460,17.0,16.025,16.011,33.86]
[1673334555747,17.0,16.026,16.011,33.86]
[1673334556583,17.0,16.026,16.011,20.0]
[1673334556904,17.0,16.026,16.01,20.0]
[1673334558988,20.0,16.025,16.01,20.0]
[1673334559214,17.0,16.024,16.011,20.0]
[1673334559429,17.0,16.026,16.011,20.0]
[1673334559637,17.0,16.026,16.011,32.41]
[1673334564792,17.0,16.026,16.011,12.41]
[1673334565401,20.0,16.031,16.012,15.29771421]
[1673334565614,20.0,16.03,16.014,20.0]